{"text_format":"3","workbook":"xlsx","n_sheets":1,"sheets":["Bibliotēkas grāmatu izsniegšana"],"not_rendered":{"defined_names":4},"read":"whole","date_system":"1900"}

{"sheet":"Bibliotēkas grāmatu izsniegšana","index":0,"n_rows":9,"n_cols":8,"rows_kept":9,"merged":[[0,1,0,4],[0,5,0,6]]}
[null,"Bibliotēkas grāmatu izsniegšanas lapa",{"$nulls":3},"DIENAS LĪDZ TERMIŅA BEIGĀM: ",null,10]
["Nokavēts","SKOLĒNS","KONTAKTPERSONAS E-PASTA ADRESE","KONTAKTTĀLRUNIS","GRĀMATAS NOSAUKUMS","IZSNIEGŠANAS DATUMS","NODOŠANAS DATUMS","DIENAS"]
[{"$f":"IFERROR(((Grāmatas[[#This Row],[IZSNIEGŠANAS DATUMS]]+Atļautās_dienas)<TODAY())*(LEN(Grāmatas[[#This Row],[NODOŠANAS DATUMS]])=0)*(LEN(Grāmatas[[#This Row],[IZSNIEGŠANAS DATUMS]])>0),0)","v":0},"Ella Krēsliņa","persona@example.com","+ 371 12345679","Kapteiņa Granta bērni",{"$f":"DATE(YEAR(TODAY()),1,14)","v":"2018-01-14"},{"$f":"DATE(YEAR(TODAY()),1,21)","v":"2018-01-21"},{"$f":"IFERROR(IF(Grāmatas[[#This Row],[NODOŠANAS DATUMS]]=\"\",IF(Grāmatas[[#This Row],[IZSNIEGŠANAS DATUMS]]<>\"\", TODAY()-Grāmatas[[#This Row],[IZSNIEGŠANAS DATUMS]],\"\"),Grāmatas[[#This Row],[NODOŠANAS DATUMS]]-Grāmatas[[#This Row],[IZSNIEGŠANAS DATUMS]]), \"\")","v":7}]
[{"$f":"IFERROR(((Grāmatas[[#This Row],[IZSNIEGŠANAS DATUMS]]+Atļautās_dienas)<TODAY())*(LEN(Grāmatas[[#This Row],[NODOŠANAS DATUMS]])=0)*(LEN(Grāmatas[[#This Row],[IZSNIEGŠANAS DATUMS]])>0),0)","v":0},"Stefans Paegle","persona@example.com","+ 371 12345679","Šarlotes tīkls",{"$f":"DATE(YEAR(TODAY()),2,15)","v":"2018-02-15"},{"$f":"DATE(YEAR(TODAY()),2,18)","v":"2018-02-18"},{"$f":"IFERROR(IF(Grāmatas[[#This Row],[NODOŠANAS DATUMS]]=\"\",IF(Grāmatas[[#This Row],[IZSNIEGŠANAS DATUMS]]<>\"\", TODAY()-Grāmatas[[#This Row],[IZSNIEGŠANAS DATUMS]],\"\"),Grāmatas[[#This Row],[NODOŠANAS DATUMS]]-Grāmatas[[#This Row],[IZSNIEGŠANAS DATUMS]]), \"\")","v":3}]
[{"$f":"IFERROR(((Grāmatas[[#This Row],[IZSNIEGŠANAS DATUMS]]+Atļautās_dienas)<TODAY())*(LEN(Grāmatas[[#This Row],[NODOŠANAS DATUMS]])=0)*(LEN(Grāmatas[[#This Row],[IZSNIEGŠANAS DATUMS]])>0),0)","v":0},"Ida kļaviņa","persona@example.com","+ 371 12345679","Mazais Princis",{"$f":"DATE(YEAR(TODAY()),2,17)","v":"2018-02-17"},{"$f":"DATE(YEAR(TODAY()),2,22)","v":"2018-02-22"},{"$f":"IFERROR(IF(Grāmatas[[#This Row],[NODOŠANAS DATUMS]]=\"\",IF(Grāmatas[[#This Row],[IZSNIEGŠANAS DATUMS]]<>\"\", TODAY()-Grāmatas[[#This Row],[IZSNIEGŠANAS DATUMS]],\"\"),Grāmatas[[#This Row],[NODOŠANAS DATUMS]]-Grāmatas[[#This Row],[IZSNIEGŠANAS DATUMS]]), \"\")","v":5}]
[{"$f":"IFERROR(((Grāmatas[[#This Row],[IZSNIEGŠANAS DATUMS]]+Atļautās_dienas)<TODAY())*(LEN(Grāmatas[[#This Row],[NODOŠANAS DATUMS]])=0)*(LEN(Grāmatas[[#This Row],[IZSNIEGŠANAS DATUMS]])>0),0)","v":0},"Teodors Skujiņš","persona@example.com","+ 371 12345679","Bagātību sala",{"$f":"DATE(YEAR(TODAY()),2,17)","v":"2018-02-17"},{"$f":"DATE(YEAR(TODAY()),2,25)","v":"2018-02-25"},{"$f":"IFERROR(IF(Grāmatas[[#This Row],[NODOŠANAS DATUMS]]=\"\",IF(Grāmatas[[#This Row],[IZSNIEGŠANAS DATUMS]]<>\"\", TODAY()-Grāmatas[[#This Row],[IZSNIEGŠANAS DATUMS]],\"\"),Grāmatas[[#This Row],[NODOŠANAS DATUMS]]-Grāmatas[[#This Row],[IZSNIEGŠANAS DATUMS]]), \"\")","v":8}]
[{"$f":"IFERROR(((Grāmatas[[#This Row],[IZSNIEGŠANAS DATUMS]]+Atļautās_dienas)<TODAY())*(LEN(Grāmatas[[#This Row],[NODOŠANAS DATUMS]])=0)*(LEN(Grāmatas[[#This Row],[IZSNIEGŠANAS DATUMS]])>0),0)","v":0},"Aira Jaunzema","persona@example.com","+ 371 12345679","Matilde",{"$f":"DATE(YEAR(TODAY()),2,18)","v":"2018-02-18"},{"$f":"DATE(YEAR(TODAY()),2,28)","v":"2018-02-28"},{"$f":"IFERROR(IF(Grāmatas[[#This Row],[NODOŠANAS DATUMS]]=\"\",IF(Grāmatas[[#This Row],[IZSNIEGŠANAS DATUMS]]<>\"\", TODAY()-Grāmatas[[#This Row],[IZSNIEGŠANAS DATUMS]],\"\"),Grāmatas[[#This Row],[NODOŠANAS DATUMS]]-Grāmatas[[#This Row],[IZSNIEGŠANAS DATUMS]]), \"\")","v":10}]
[{"$f":"IFERROR(((Grāmatas[[#This Row],[IZSNIEGŠANAS DATUMS]]+Atļautās_dienas)<TODAY())*(LEN(Grāmatas[[#This Row],[NODOŠANAS DATUMS]])=0)*(LEN(Grāmatas[[#This Row],[IZSNIEGŠANAS DATUMS]])>0),0)","v":1},"Aira Zeltiņa","persona@example.com","+ 371 12345679","Nārnijas hronikas",{"$f":"DATE(YEAR(TODAY()),1,23)","v":"2018-01-23"},null,{"$f":"IFERROR(IF(Grāmatas[[#This Row],[NODOŠANAS DATUMS]]=\"\",IF(Grāmatas[[#This Row],[IZSNIEGŠANAS DATUMS]]<>\"\", TODAY()-Grāmatas[[#This Row],[IZSNIEGŠANAS DATUMS]],\"\"),Grāmatas[[#This Row],[NODOŠANAS DATUMS]]-Grāmatas[[#This Row],[IZSNIEGŠANAS DATUMS]]), \"\")","v":164}]
[{"$f":"IFERROR(((Grāmatas[[#This Row],[IZSNIEGŠANAS DATUMS]]+Atļautās_dienas)<TODAY())*(LEN(Grāmatas[[#This Row],[NODOŠANAS DATUMS]])=0)*(LEN(Grāmatas[[#This Row],[IZSNIEGŠANAS DATUMS]])>0),0)","v":0},"Dārta Krieviņa","persona@example.com","+ 371 12345679","Džungļu grāmata",{"$f":"TODAY()","v":"2018-07-06"},null,{"$f":"IFERROR(IF(Grāmatas[[#This Row],[NODOŠANAS DATUMS]]=\"\",IF(Grāmatas[[#This Row],[IZSNIEGŠANAS DATUMS]]<>\"\", TODAY()-Grāmatas[[#This Row],[IZSNIEGŠANAS DATUMS]],\"\"),Grāmatas[[#This Row],[NODOŠANAS DATUMS]]-Grāmatas[[#This Row],[IZSNIEGŠANAS DATUMS]]), \"\")","v":0}]